[Event "1000GM Spring Break Schev-E 2024"]
[Site "San Jose"]
[Date "2024.04.07"]
[Round "1.1"]
[White "Guo, Ethan"]
[Black "Arenas, David"]
[Result "0-1"]
[ECO "B72"]
[WhiteElo "2211"]
[BlackElo "2366"]
[Annotator "RC"]
[PlyCount "88"]
[EventDate "2024.03.28"]
[EventType "schev"]
[EventCountry "USA"]
[SourceTitle "playchess.com"]
[Source "ChessBase"]
[SourceQuality "1"]
[TimeControl "5400+30"]

1. e4 {[%emt 0:00:40]} c5 {[%emt 0:02:22]} 2. Nf3 {[%emt 0:00:07]} d6 {[%emt 0:00:05]} 3. d4 {[%emt 0:00:05]} Nf6 {[%emt 0:00:05]} 4. Nc3 {[%emt 0:00:06]} cxd4 {[%emt 0:00:03]} 5. Nxd4 {[%emt 0:00:08]} g6 {[%emt 0:00:03]} 6. Be3 {[%emt 0:00:10]} a6 {[%emt 0:00:05]} 7. f3 {[%emt 0:00:14]} b5 {[%emt 0:00:04]} 8. a4 {[%emt 0:00:17]} b4 {[%emt 1:31:43]} 9. Na2 {[%emt 0:00:06]} e5 {[%emt 0:00:00]} 10. Nb3 {[%emt 0:00:41]} d5 {[%emt 0:00:00]} 11. exd5 {[%emt 0:03:22]} Nxd5 {[%emt 0:00:00]} 12. Bf2 {[%emt 0:01:24]} Nc6 {[%emt 0:00:00]} 13. Bc4 {[%emt 0:00:37]} Be6 {[%emt 0:00:00]} 14. Qd2 {[%emt 0:03:09]} Nf4 {[%emt 0:00:00]} 15. Bxe6 {[%emt 0:02:20]} Nxe6 {[%emt 0:00:00]} 16. Qxd8+ {[%emt 0:00:54]} Rxd8 {[%emt 0:00:00]} 17. Rd1 {[%emt 0:00:30]} Rxd1+ {[%emt 0:00:00]} 18. Kxd1 {[%emt 0:00:30]} Bh6 {[%emt 0:00:00]} 19. Nc5 {[%emt 0:00:30]} Ke7 {[%emt 0:00:00]} 20. Nxe6 {[%emt 0:00:30]} Kxe6 {[%emt 0:00:00]} 21. Nc1 {[%emt 0:00:30]} Rd8+ {[%emt 0:00:00]} 22. Nd3 {[%emt 0:00:30]} b3 {[%emt 0:00:00]} 23. Bc5 {[%emt 0:00:30]} f5 {[%emt 0:00:00]} 24. Re1 {[%emt 0:00:30]} Kf6 {[%emt 0:00:00]} 25. h4 {[%emt 0:19:12]} Nd4 {[%emt 0:00:00]} 26. cxb3 {[%emt 0:02:29]} Nxb3 {[%emt 0:00:00]} 27. Kc2 {[%emt 0:00:11]} Rxd3 {[%emt 0:00:00]} 28. Kxd3 {[%emt 0:00:30]} Nxc5+ {[%emt 0:00:00]} 29. Kc4 {[%emt 0:00:25]} Nxa4 {[%emt 0:00:00]} 30. Ra1 {[%emt 0:00:48]} Nb6+ {[%emt 0:00:00]} 31. Kc5 {[%emt 0:00:41]} Be3+ {[%emt 0:11:30]} 32. Kc6 {[%emt 1:03:54]} Bd4 {[%emt 0:00:00]} 33. Rxa6 {[%emt 0:00:00]} e4 {[%emt 0:00:00]} 34. fxe4 {[%emt 0:00:00]} fxe4 {[%emt 0:00:00]} 35. b4 {[%emt 0:00:00]} e3 {[%emt 0:00:00]} 36. Ra2 {[%emt 0:00:00]} Ke5 {[%emt 0:02:30]} 37. b5 {[%emt 0:00:00]} Ke4 {[%emt 0:00:00]} 38. Kd6 {[%emt 0:00:00]} Nc4+ {[%emt 0:00:00]} 39. Kc7 {[%emt 0:00:00]} Kd3 {[%emt 0:00:00]} 40. b6 {[%emt 0:00:00]} Bxb6+ {[%emt 0:00:00]} 41. Kd7 {[%emt 0:00:00]} Bd4 {[%emt 0:00:00]} 42. Ke7 {[%emt 0:00:00]} Bb2 {[%emt 0:00:00]} 43. Ra6 {[%emt 0:00:00]} e2 {[%emt 0:00:00]} 44. Re6 {[%emt 0:00:00]} Be5 {[%emt 0:00:00]} 0-1

[Event "1000GM Spring Break Schev-E 2024"]
[Site "San Jose"]
[Date "2024.04.07"]
[Round "1.2"]
[White "Liu, Patrick"]
[Black "Zuluaga Mancilla, Cesar"]
[Result "1-0"]
[ECO "B41"]
[WhiteElo "2113"]
[BlackElo "2206"]
[Annotator "RC"]
[PlyCount "69"]
[EventDate "2024.03.28"]
[EventType "schev"]
[EventCountry "USA"]
[SourceTitle "playchess.com"]
[Source "ChessBase"]
[SourceQuality "1"]
[TimeControl "5400+30"]

1. e4 {[%emt 0:02:59]} c5 {[%emt 0:04:08]} 2. Nf3 {[%emt 0:00:02]} e6 {[%emt 0:00:24]} 3. d4 {[%emt 0:00:02]} cxd4 {[%emt 0:00:03]} 4. Nxd4 {[%emt 0:00:07]} a6 {[%emt 0:00:06]} 5. h3 {[%emt 0:00:04]} Nf6 {[%emt 0:00:57]} 6. Bd3 {[%emt 0:00:03]} Qc7 {[%emt 0:02:17]} 7. O-O {[%emt 0:01:21]} Nc6 {[%emt 0:04:05]} 8. Nxc6 {[%emt 0:00:30]} dxc6 {[%emt 0:00:06]} 9. Nd2 {[%emt 0:02:55]} e5 {[%emt 0:00:26]} 10. a4 {[%emt 0:00:55]} Be6 {[%emt 0:01:07]} 11. Qe2 {[%emt 0:06:17]} Bc5 {[%emt 0:03:02]} 12. a5 {[%emt 0:15:09]} O-O {[%emt 0:12:40]} 13. Bc4 {[%emt 0:03:39]} Rfe8 {[%emt 0:01:25]} 14. Bxe6 {[%emt 0:03:59]} Rxe6 {[%emt 0:00:01]} 15. Nc4 {[%emt 0:00:07]} Rd8 {[%emt 0:01:24]} 16. c3 {[%emt 0:05:56]} Ree8 {[%emt 0:08:02]} 17. Bg5 {[%emt 0:04:00]} Re6 {[%emt 0:03:26]} 18. Rad1 {[%emt 0:04:02]} Rxd1 {[%emt 0:03:05]} 19. Rxd1 {[%emt 0:00:03]} h6 {[%emt 0:00:10]} 20. Bh4 {[%emt 0:00:43]} g5 {[%emt 0:04:07]} 21. Bg3 {[%emt 0:00:43]} Kg7 {[%emt 0:01:54]} 22. Qf3 {[%emt 0:05:17]} Qe7 {[%emt 0:03:17]} 23. Kf1 {[%emt 0:13:42]} Nd7 {[%emt 0:04:29]} 24. Qd3 {[%emt 0:00:24]} Nf8 {[%emt 0:00:45]} 25. b4 {[%emt 0:01:54]} Ba7 {[%emt 0:02:09]} 26. Qd8 {[%emt 0:00:15]} Ng6 {[%emt 0:16:38]} 27. Qa8 {[%emt 0:03:40]} Bd4 {[%emt 0:03:11]} 28. cxd4 {[%emt 0:01:37]} exd4 {[%emt 0:00:01]} 29. Qa7 {[%emt 0:01:48]} Qxb4 {[%emt 0:03:16]} 30. Qxd4+ {[%emt 0:00:10]} Kh7 {[%emt 0:00:05]} 31. Nd6 {[%emt 0:01:06]} Qxa5 {[%emt 0:00:02]} 32. Nxf7 {[%emt 0:01:28]} Re7 {[%emt 0:01:10]} 33. Nd6 {[%emt 0:01:08]} c5 {[%emt 0:00:18]} 34. Qd5 {[%emt 0:01:02]} Qb4 {[%emt 0:00:01]} 35. Nf5 {[%emt 0:00:20]} 1-0

[Event "1000GM Spring Break Schev-E 2024"]
[Site "San Jose"]
[Date "2024.04.07"]
[Round "1.3"]
[White "Deng, Henry"]
[Black "Figueredo Losada, Leonel"]
[Result "1/2-1/2"]
[ECO "B26"]
[WhiteElo "2305"]
[BlackElo "2323"]
[Annotator "RC"]
[PlyCount "74"]
[EventDate "2024.03.28"]
[EventType "schev"]
[EventCountry "USA"]
[SourceTitle "playchess.com"]
[Source "ChessBase"]
[SourceQuality "1"]
[TimeControl "5400+30"]

1. e4 {[%emt 0:01:07]} c5 {[%emt 0:00:07]} 2. Nc3 {[%emt 0:00:40]} a6 {[%emt 0:00:04]} 3. g3 {[%emt 0:00:44]} Nc6 {[%emt 0:00:05]} 4. Bg2 {[%emt 0:00:42]} g6 {[%emt 0:00:04]} 5. d3 {[%emt 0:01:31]} Bg7 {[%emt 0:00:25]} 6. Be3 {[%emt 0:01:45]} d6 {[%emt 0:00:09]} 7. Qd2 {[%emt 0:00:49]} Nd4 {[%emt 0:02:04]} 8. Nd1 {[%emt 0:02:47]} e5 {[%emt 0:05:22]} 9. c3 {[%emt 0:06:38]} Ne6 {[%emt 0:00:26]} 10. Ne2 {[%emt 0:05:07]} Nf6 {[%emt 0:00:40]} 11. Bh6 {[%emt 0:03:12]} O-O {[%emt 0:07:07]} 12. Bxg7 {[%emt 0:02:22]} Nxg7 {[%emt 0:00:19]} 13. Ne3 {[%emt 0:01:17]} Be6 {[%emt 0:20:45]} 14. f4 {[%emt 0:04:49]} exf4 {[%emt 0:04:02]} 15. Nxf4 {[%emt 0:07:15]} Nfh5 {[%emt 0:00:49]} 16. O-O {[%emt 0:05:56]} Qg5 {[%emt 0:13:16]} 17. Qe2 {[%emt 0:07:53]} Rae8 {[%emt 0:00:42]} 18. Nxe6 {[%emt 0:02:16]} Rxe6 {[%emt 0:06:01]} 19. Rae1 {[%emt 0:02:07]} Rfe8 {[%emt 0:05:48]} 20. Qf2 {[%emt 0:05:25]} Rf6 {[%emt 0:00:09]} 21. Qe2 {[%emt 0:02:19]} Rfe6 {[%emt 0:00:43]} 22. Bh3 {[%emt 0:04:39]} Rf6 {[%emt 0:00:20]} 23. Rxf6 {[%emt 0:01:22]} Nxf6 {[%emt 0:00:04]} 24. Qf2 {[%emt 0:04:03]} Re7 {[%emt 0:05:43]} 25. Rf1 {[%emt 0:01:42]} Nge8 {[%emt 0:01:30]} 26. Nc4 {[%emt 0:01:37]} Kg7 {[%emt 0:05:44]} 27. e5 {[%emt 0:02:06]} dxe5 {[%emt 0:00:10]} 28. Qxc5 {[%emt 0:00:13]} Nh5 {[%emt 0:00:20]} 29. Bg2 {[%emt 0:01:33]} Re6 {[%emt 0:02:46]} 30. Bxb7 {[%emt 0:01:51]} Nef6 {[%emt 0:02:22]} 31. Bg2 {[%emt 0:01:20]} Ng4 {[%emt 0:00:51]} 32. Qd5 {[%emt 0:03:05]} Nxg3 {[%emt 0:16:08]} 33. hxg3 {[%emt 0:02:05]} Qh6 {[%emt 0:00:01]} 34. Rf3 {[%emt 0:02:43]} Qc1+ {[%emt 0:00:04]} 35. Bf1 {[%emt 0:01:14]} Qh6 {[%emt 0:00:04]} 36. Bg2 {[%emt 0:01:40]} Qc1+ {[%emt 0:00:08]} 37. Rf1 {[%emt 0:00:03]} Qh6 {[%emt 0:00:04]} 1/2-1/2

[Event "1000GM Spring Break Schev-E 2024"]
[Site "San Jose"]
[Date "2024.04.07"]
[Round "1.4"]
[White "Alarcon Bahamondez, Roberto Ignacio"]
[Black "Tang, Dylan"]
[Result "1-0"]
[ECO "C26"]
[WhiteElo "2300"]
[BlackElo "2217"]
[Annotator "RC"]
[PlyCount "141"]
[EventDate "2024.03.28"]
[EventType "schev"]
[EventCountry "USA"]
[SourceTitle "playchess.com"]
[Source "ChessBase"]
[SourceQuality "1"]
[TimeControl "5400+30"]

1. e4 {[%emt 0:00:38]} e5 {[%emt 0:00:33]} 2. Nc3 {[%emt 0:00:37]} Nf6 {[%emt 0:00:09]} 3. g3 {[%emt 0:00:17]} Bc5 {[%emt 0:04:11]} 4. Bg2 {[%emt 0:01:20]} Nc6 {[%emt 0:02:13]} 5. Nge2 {[%emt 0:04:50]} d6 {[%emt 0:04:00]} 6. Na4 {[%emt 0:03:33]} Be6 {[%emt 0:00:51]} 7. d3 {[%emt 0:01:15]} Qe7 {[%emt 0:09:23]} 8. c3 {[%emt 0:08:32]} d5 {[%emt 0:15:57]} 9. Nxc5 {[%emt 0:11:03]} Qxc5 {[%emt 0:01:29]} 10. Qa4 {[%emt 0:17:24]} dxe4 {[%emt 0:03:32]} 11. Be3 {[%emt 0:02:16]} Qa5 {[%emt 0:01:33]} 12. Qxa5 {[%emt 0:01:37]} Nxa5 {[%emt 0:00:07]} 13. dxe4 {[%emt 0:01:14]} Nc4 {[%emt 0:00:57]} 14. Bc1 {[%emt 0:00:22]} O-O-O {[%emt 0:01:41]} 15. b3 {[%emt 0:02:46]} Nb6 {[%emt 0:02:53]} 16. Be3 {[%emt 0:05:23]} Ng4 {[%emt 0:04:15]} 17. Bc5 {[%emt 0:00:24]} Rd3 {[%emt 0:01:56]} 18. h3 {[%emt 0:04:12]} Nf6 {[%emt 0:00:41]} 19. Rd1 {[%emt 0:00:48]} Rhd8 {[%emt 0:01:29]} 20. Rxd3 {[%emt 0:00:08]} Rxd3 {[%emt 0:00:05]} 21. c4 {[%emt 0:01:09]} Nbd7 {[%emt 0:02:37]} 22. Be3 {[%emt 0:03:31]} Ng8 {[%emt 0:06:56]} 23. O-O {[%emt 0:02:00]} Ne7 {[%emt 0:03:08]} 24. Rc1 {[%emt 0:01:07]} c5 {[%emt 0:07:22]} 25. Nc3 {[%emt 0:01:11]} Rd6 {[%emt 0:01:05]} 26. Nd5 {[%emt 0:01:01]} Nc6 {[%emt 0:00:52]} 27. f4 {[%emt 0:06:07]} f6 {[%emt 0:05:35]} 28. Rd1 {[%emt 0:00:34]} Kd8 {[%emt 0:04:22]} 29. Rd2 {[%emt 0:00:45]} h6 {[%emt 0:00:34]} 30. Rf2 {[%emt 0:00:33]} Nd4 {[%emt 0:01:42]} 31. Kh2 {[%emt 0:01:47]} a5 {[%emt 0:00:58]} 32. Nc3 {[%emt 0:00:42]} Ke7 {[%emt 0:00:48]} 33. Bd2 {[%emt 0:00:33]} b6 {[%emt 0:02:56]} 34. Be3 {[%emt 0:00:32]} Ke8 {[%emt 0:00:24]} 35. h4 {[%emt 0:00:55]} Bf7 {[%emt 0:01:00]} 36. Bh3 {[%emt 0:00:40]} Ke7 {[%emt 0:00:20]} 37. Kg2 {[%emt 0:00:53]} Nb8 {[%emt 0:00:38]} 38. fxe5 {[%emt 0:01:09]} fxe5 {[%emt 0:00:06]} 39. Nd5+ {[%emt 0:00:30]} Bxd5 {[%emt 0:00:06]} 40. exd5 {[%emt 0:00:25]} Nd7 {[%emt 0:00:38]} 41. Bxd4 {[%emt 0:04:05]} exd4 {[%emt 0:01:13]} 42. Be6 {[%emt 0:01:16]} Nf8 {[%emt 0:00:57]} 43. Bf5 {[%emt 0:01:22]} Rf6 {[%emt 0:01:08]} 44. h5 {[%emt 0:02:09]} Kd6 {[%emt 0:00:33]} 45. g4 {[%emt 0:00:24]} g6 {[%emt 0:00:47]} 46. Bxg6 {[%emt 0:00:46]} Rxf2+ {[%emt 0:00:24]} 47. Kxf2 {[%emt 0:00:03]} Nd7 {[%emt 0:00:34]} 48. Kf3 {[%emt 0:01:26]} Ke5 {[%emt 0:00:52]} 49. Bf5 {[%emt 0:00:31]} Nf6 {[%emt 0:00:14]} 50. Bg6 {[%emt 0:00:25]} Nd7 {[%emt 0:00:25]} 51. Kf2 {[%emt 0:00:59]} Kf4 {[%emt 0:01:16]} 52. Bf5 {[%emt 0:00:32]} Ne5 {[%emt 0:00:06]} 53. d6 {[%emt 0:00:24]} Nf7 {[%emt 0:00:20]} 54. d7 {[%emt 0:00:15]} Nd8 {[%emt 0:00:31]} 55. Ke2 {[%emt 0:00:21]} Nf7 {[%emt 0:00:09]} 56. Kd2 {[%emt 0:00:22]} Nd8 {[%emt 0:00:28]} 57. Kc2 {[%emt 0:00:24]} Nf7 {[%emt 0:00:47]} 58. Kb2 {[%emt 0:00:27]} Kg5 {[%emt 0:02:32]} 59. Ka3 {[%emt 0:00:56]} Kf6 {[%emt 0:00:20]} 60. Ka4 {[%emt 0:01:14]} Ke7 {[%emt 0:01:27]} 61. Kb5 {[%emt 0:00:47]} Ne5 {[%emt 0:00:58]} 62. g5 {[%emt 0:00:49]} hxg5 {[%emt 0:00:30]} 63. h6 {[%emt 0:00:14]} Nf7 {[%emt 0:03:06]} 64. h7 {[%emt 0:00:12]} d3 {[%emt 0:00:23]} 65. Bg4 {[%emt 0:00:52]} d2 {[%emt 0:01:16]} 66. Kc6 {[%emt 0:02:39]} Kd8 {[%emt 0:00:44]} 67. Bd1 {[%emt 0:00:29]} Nh8 {[%emt 0:00:59]} 68. Kd6 {[%emt 0:00:30]} Ng6 {[%emt 0:00:43]} 69. Be2 {[%emt 0:00:34]} Nh8 {[%emt 0:00:25]} 70. Ke6 {[%emt 0:00:09]} a4 {[%emt 0:00:20]} 71. bxa4 {[%emt 0:00:12]} 1-0

[Event "1000GM Spring Break Schev-E 2024"]
[Site "San Jose"]
[Date "2024.04.07"]
[Round "1.5"]
[White "Jimenez Garcia, Emmanuel"]
[Black "Atwell, Rose"]
[Result "1/2-1/2"]
[ECO "D12"]
[WhiteElo "2421"]
[BlackElo "2279"]
[Annotator "RC"]
[PlyCount "78"]
[EventDate "2024.03.28"]
[EventType "schev"]
[EventCountry "USA"]
[SourceTitle "playchess.com"]
[Source "ChessBase"]
[SourceQuality "1"]
[TimeControl "5400+30"]

1. c4 {[%emt 0:00:26]} c6 {[%emt 0:00:05]} 2. Nf3 {[%emt 0:00:14]} d5 {[%emt 0:00:06]} 3. d4 {[%emt 0:00:05]} Nf6 {[%emt 0:00:06]} 4. e3 {[%emt 0:00:21]} Bf5 {[%emt 0:00:18]} 5. Nc3 {[%emt 0:00:24]} e6 {[%emt 0:00:06]} 6. Bd3 {[%emt 0:01:15]} Bxd3 {[%emt 0:01:00]} 7. Qxd3 {[%emt 0:00:03]} Nbd7 {[%emt 0:01:40]} 8. O-O {[%emt 0:00:09]} Be7 {[%emt 0:00:58]} 9. e4 {[%emt 0:02:09]} dxe4 {[%emt 0:00:21]} 10. Nxe4 {[%emt 0:00:03]} O-O {[%emt 0:05:13]} 11. Nc3 {[%emt 0:01:33]} Qc7 {[%emt 0:08:13]} 12. Re1 {[%emt 0:03:59]} Rad8 {[%emt 0:03:09]} 13. Bg5 {[%emt 0:02:04]} Rfe8 {[%emt 0:04:43]} 14. Rad1 {[%emt 0:03:34]} c5 {[%emt 0:20:00]} 15. Nb5 {[%emt 0:39:44]} Qb6 {[%emt 0:07:51]} 16. Bf4 {[%emt 0:02:27]} Rc8 {[%emt 0:01:16]} 17. Qe2 {[%emt 0:05:03]} a6 {[%emt 0:04:53]} 18. dxc5 {[%emt 0:16:51]} Qxc5 {[%emt 0:00:43]} 19. Na3 {[%emt 0:00:02]} Qc6 {[%emt 0:11:17]} 20. Nd4 {[%emt 0:01:03]} Qa4 {[%emt 0:00:46]} 21. Ndc2 {[%emt 0:01:42]} Bxa3 {[%emt 0:04:45]} 22. Nxa3 {[%emt 0:01:19]} b5 {[%emt 0:00:09]} 23. Rc1 {[%emt 0:02:25]} Nb6 {[%emt 0:06:44]} 24. Bg5 {[%emt 0:01:10]} Nxc4 {[%emt 0:01:57]} 25. Nxc4 {[%emt 0:01:38]} bxc4 {[%emt 0:00:12]} 26. Bxf6 {[%emt 0:00:07]} gxf6 {[%emt 0:00:05]} 27. Qg4+ {[%emt 0:01:43]} Kf8 {[%emt 0:01:26]} 28. b3 {[%emt 0:01:05]} Qxa2 {[%emt 0:00:44]} 29. bxc4 {[%emt 0:00:06]} Qd2 {[%emt 0:03:14]} 30. h4 {[%emt 0:02:53]} Red8 {[%emt 0:01:50]} 31. Red1 {[%emt 0:00:24]} Qa5 {[%emt 0:00:58]} 32. Rxd8+ {[%emt 0:01:24]} Qxd8 {[%emt 0:01:37]} 33. Qf4 {[%emt 0:02:46]} Ke7 {[%emt 0:03:49]} 34. c5 {[%emt 0:03:04]} Qd5 {[%emt 0:00:51]} 35. Qb4 {[%emt 0:00:52]} Qc6 {[%emt 0:00:30]} 36. Qa3 {[%emt 0:00:39]} Rg8 {[%emt 0:01:14]} 37. g3 {[%emt 0:00:01]} Rd8 {[%emt 0:00:45]} 38. Qc3 {[%emt 0:01:11]} Rd5 {[%emt 0:03:14]} 39. Qb4 {[%emt 0:00:26]} f5 {[%emt 0:00:56]} 1/2-1/2

[Event "1000GM Spring Break Schev-E 2024"]
[Site "San Jose"]
[Date "2024.04.07"]
[Round "2.1"]
[White "Zuluaga Mancilla, Cesar"]
[Black "Guo, Ethan"]
[Result "1-0"]
[ECO "D93"]
[WhiteElo "2206"]
[BlackElo "2211"]
[Annotator "RC"]
[PlyCount "75"]
[EventDate "2024.03.28"]
[EventType "schev"]
[EventCountry "USA"]
[SourceTitle "playchess.com"]
[Source "ChessBase"]
[SourceQuality "1"]
[TimeControl "5400+30"]

1. d4 {[%emt 0:09:46]} Nf6 {[%emt 0:00:03]} 2. Nf3 {[%emt 0:00:08]} g6 {[%emt 0:00:09]} 3. c4 {[%emt 0:00:34]} Bg7 {[%emt 0:00:05]} 4. Nc3 {[%emt 0:00:07]} d5 {[%emt 0:00:04]} 5. Bf4 {[%emt 0:01:23]} O-O {[%emt 0:00:11]} 6. e3 {[%emt 0:00:04]} c5 {[%emt 0:00:12]} 7. dxc5 {[%emt 0:00:00]} Ne4 {[%emt 0:03:17]} 8. Be5 {[%emt 0:04:09]} Nxc3 {[%emt 0:00:17]} 9. Bxc3 {[%emt 0:00:35]} Bxc3+ {[%emt 0:00:23]} 10. bxc3 {[%emt 0:00:05]} Qa5 {[%emt 0:00:19]} 11. Rc1 {[%emt 0:05:30]} dxc4 {[%emt 0:01:18]} 12. Bxc4 {[%emt 0:00:13]} Qxc5 {[%emt 0:00:23]} 13. Qd4 {[%emt 0:00:05]} Qf5 {[%emt 0:03:29]} 14. Ne5 {[%emt 0:01:59]} Nc6 {[%emt 1:27:20]} 15. Nxc6 {[%emt 0:00:08]} bxc6 {[%emt 0:00:00]} 16. O-O {[%emt 0:01:07]} c5 {[%emt 0:00:00]} 17. Qh4 {[%emt 0:00:55]} Be6 {[%emt 0:00:00]} 18. Bxe6 {[%emt 0:06:39]} Qxe6 {[%emt 0:00:00]} 19. Rfd1 {[%emt 0:04:47]} Rfd8 {[%emt 0:00:00]} 20. Qa4 {[%emt 0:03:04]} Rxd1+ {[%emt 0:00:00]} 21. Rxd1 {[%emt 0:00:12]} Qe5 {[%emt 0:00:00]} 22. c4 {[%emt 0:09:05]} e6 {[%emt 0:00:00]} 23. h3 {[%emt 0:01:06]} Qf5 {[%emt 0:00:00]} 24. Qb3 {[%emt 0:08:37]} Qe5 {[%emt 0:00:00]} 25. f4 {[%emt 0:01:23]} Qe4 {[%emt 0:00:00]} 26. Rd7 {[%emt 0:06:54]} Qc6 {[%emt 0:00:00]} 27. Qb5 {[%emt 0:06:16]} Qe4 {[%emt 0:00:00]} 28. Qxc5 {[%emt 0:00:16]} Qb1+ {[%emt 0:00:00]} 29. Kh2 {[%emt 0:00:11]} Qxa2 {[%emt 0:00:00]} 30. Qe7 {[%emt 0:01:12]} Rf8 {[%emt 0:00:00]} 31. c5 {[%emt 0:01:49]} Qc4 {[%emt 0:00:00]} 32. Qd6 {[%emt 0:07:05]} Rc8 {[%emt 0:00:00]} 33. c6 {[%emt 0:02:40]} Rxc6 {[%emt 0:00:00]} 34. Rd8+ {[%emt 0:00:57]} Kg7 {[%emt 0:00:00]} 35. Qe5+ {[%emt 0:01:17]} Kh6 {[%emt 0:00:00]} 36. Rg8 {[%emt 0:00:01]} f6 {[%emt 0:00:00]} 37. Qxf6 {[%emt 0:00:23]} Qd5 {[%emt 0:00:00]} 38. Rxg6+ {[%emt 0:01:10]} 1-0

[Event "1000GM Spring Break Schev-E 2024"]
[Site "San Jose"]
[Date "2024.04.07"]
[Round "2.2"]
[White "Figueredo Losada, Leonel"]
[Black "Liu, Patrick"]
[Result "1-0"]
[ECO "B23"]
[WhiteElo "2323"]
[BlackElo "2113"]
[Annotator "RC"]
[PlyCount "123"]
[EventDate "2024.03.28"]
[EventType "schev"]
[EventCountry "USA"]
[SourceTitle "playchess.com"]
[Source "ChessBase"]
[SourceQuality "1"]
[TimeControl "5400+30"]

1. e4 {[%emt 0:00:06]} c5 {[%emt 0:01:29]} 2. Nc3 {[%emt 0:00:08]} Nc6 {[%emt 0:00:05]} 3. f4 {[%emt 0:01:34]} g6 {[%emt 0:01:08]} 4. Nf3 {[%emt 0:00:05]} Bg7 {[%emt 0:00:11]} 5. a4 {[%emt 0:00:04]} d6 {[%emt 0:02:05]} 6. Bb5 {[%emt 0:00:18]} Bd7 {[%emt 0:02:32]} 7. O-O {[%emt 0:01:21]} e6 {[%emt 0:03:26]} 8. Bxc6 {[%emt 0:23:50]} Bxc6 {[%emt 0:07:08]} 9. d4 {[%emt 0:01:43]} cxd4 {[%emt 0:03:30]} 10. Nxd4 {[%emt 0:00:02]} Nf6 {[%emt 0:02:08]} 11. Qd3 {[%emt 0:07:28]} O-O {[%emt 0:08:00]} 12. Kh1 {[%emt 0:00:58]} Rc8 {[%emt 0:04:18]} 13. b3 {[%emt 0:01:29]} e5 {[%emt 0:09:50]} 14. Nxc6 {[%emt 0:09:09]} Rxc6 {[%emt 0:00:07]} 15. f5 {[%emt 0:00:02]} Qc8 {[%emt 0:13:52]} 16. Bd2 {[%emt 0:11:38]} Rd8 {[%emt 0:02:52]} 17. Rad1 {[%emt 0:09:29]} a6 {[%emt 0:04:03]} 18. a5 {[%emt 0:04:22]} Rc5 {[%emt 0:05:39]} 19. Be1 {[%emt 0:02:18]} Qc7 {[%emt 0:12:36]} 20. fxg6 {[%emt 0:05:51]} hxg6 {[%emt 0:01:09]} 21. Na4 {[%emt 0:00:10]} Rc6 {[%emt 0:04:14]} 22. c4 {[%emt 0:03:38]} Nd7 {[%emt 0:03:15]} 23. Bh4 {[%emt 0:03:48]} Re8 {[%emt 0:00:17]} 24. Nc3 {[%emt 0:02:49]} Nc5 {[%emt 0:02:50]} 25. Qf3 {[%emt 0:00:14]} Qd7 {[%emt 0:02:26]} 26. Nd5 {[%emt 0:01:53]} Ne6 {[%emt 0:01:21]} 27. Qh3 {[%emt 0:00:56]} Nc5 {[%emt 0:02:03]} 28. Qf3 {[%emt 0:03:56]} Ne6 {[%emt 0:00:20]} 29. Qh3 {[%emt 0:04:33]} Nc5 {[%emt 0:00:10]} 30. Qxd7 {[%emt 0:00:22]} Nxd7 {[%emt 0:00:02]} 31. Ne7+ {[%emt 0:00:04]} Rxe7 {[%emt 0:00:05]} 32. Bxe7 {[%emt 0:00:02]} Bf8 {[%emt 0:00:48]} 33. Bxf8 {[%emt 0:00:04]} Kxf8 {[%emt 0:00:18]} 34. b4 {[%emt 0:01:04]} Rxc4 {[%emt 0:00:51]} 35. Rxd6 {[%emt 0:00:17]} Ke7 {[%emt 0:00:01]} 36. Rfd1 {[%emt 0:00:08]} Nf6 {[%emt 0:01:12]} 37. Rb6 {[%emt 0:02:06]} Rc7 {[%emt 0:00:01]} 38. b5 {[%emt 0:00:09]} Nxe4 {[%emt 0:01:17]} 39. bxa6 {[%emt 0:00:29]} bxa6 {[%emt 0:00:19]} 40. Re1 {[%emt 0:00:14]} Nf2+ {[%emt 0:01:02]} 41. Kg1 {[%emt 0:00:09]} Nd3 {[%emt 0:00:01]} 42. Rd1 {[%emt 0:00:55]} e4 {[%emt 0:01:19]} 43. Kf1 {[%emt 0:00:19]} Nc5 {[%emt 0:01:07]} 44. h4 {[%emt 0:00:38]} Rc8 {[%emt 0:00:30]} 45. Rc1 {[%emt 0:00:14]} Kd7 {[%emt 0:00:26]} 46. Ke2 {[%emt 0:00:39]} Rc7 {[%emt 0:00:31]} 47. Ke3 {[%emt 0:00:13]} Ke7 {[%emt 0:00:09]} 48. g4 {[%emt 0:00:11]} f5 {[%emt 0:00:30]} 49. gxf5 {[%emt 0:01:12]} gxf5 {[%emt 0:00:01]} 50. Rg1 {[%emt 0:01:26]} Ne6 {[%emt 0:01:23]} 51. Rg6 {[%emt 0:00:08]} Rc3+ {[%emt 0:00:23]} 52. Kd2 {[%emt 0:00:14]} Rd3+ {[%emt 0:00:11]} 53. Kc1 {[%emt 0:00:06]} Rd6 {[%emt 0:00:56]} 54. h5 {[%emt 0:00:32]} e3 {[%emt 0:00:31]} 55. Rxd6 {[%emt 0:00:05]} Kxd6 {[%emt 0:00:04]} 56. h6 {[%emt 0:00:05]} f4 {[%emt 0:00:32]} 57. h7 {[%emt 0:00:08]} e2 {[%emt 0:00:53]} 58. Kd2 {[%emt 0:00:04]} f3 {[%emt 0:00:23]} 59. h8=Q {[%emt 0:00:08]} f2 {[%emt 0:00:26]} 60. Rxe6+ {[%emt 0:00:17]} Kxe6 {[%emt 0:00:09]} 61. Kxe2 {[%emt 0:00:02]} f1=Q+ {[%emt 0:00:15]} 62. Kxf1 {[%emt 0:04:54]} 1-0

[Event "1000GM Spring Break Schev-E 2024"]
[Site "San Jose"]
[Date "2024.04.07"]
[Round "2.3"]
[White "Alarcon Bahamondez, Roberto Ignacio"]
[Black "Deng, Henry"]
[Result "1-0"]
[ECO "D12"]
[WhiteElo "2300"]
[BlackElo "2305"]
[Annotator "RC"]
[PlyCount "69"]
[EventDate "2024.03.28"]
[EventType "schev"]
[EventCountry "USA"]
[SourceTitle "playchess.com"]
[Source "ChessBase"]
[SourceQuality "1"]
[TimeControl "5400+30"]

1. d4 {[%emt 0:04:39]} d5 {[%emt 0:00:27]} 2. Nf3 {[%emt 0:00:30]} Nf6 {[%emt 0:00:15]} 3. e3 {[%emt 0:00:08]} c6 {[%emt 0:00:32]} 4. c4 {[%emt 0:00:29]} Bf5 {[%emt 0:00:18]} 5. Nc3 {[%emt 0:00:18]} e6 {[%emt 0:00:15]} 6. Nh4 {[%emt 0:00:38]} Bg6 {[%emt 0:00:07]} 7. g3 {[%emt 0:03:22]} Nbd7 {[%emt 0:00:32]} 8. cxd5 {[%emt 0:00:52]} exd5 {[%emt 0:00:15]} 9. Nxg6 {[%emt 0:00:45]} hxg6 {[%emt 0:00:26]} 10. Bg2 {[%emt 0:00:20]} Qc7 {[%emt 0:01:37]} 11. Bd2 {[%emt 0:00:30]} Be7 {[%emt 0:01:56]} 12. Rc1 {[%emt 0:00:59]} Nb6 {[%emt 1:29:50]} 13. O-O {[%emt 0:02:51]} Qd7 {[%emt 0:00:00]} 14. Qe2 {[%emt 0:06:33]} Nc4 {[%emt 0:00:00]} 15. Be1 {[%emt 0:00:49]} Nd6 {[%emt 0:00:00]} 16. f3 {[%emt 0:03:57]} Qe6 {[%emt 0:00:00]} 17. Bf2 {[%emt 0:07:28]} Rc8 {[%emt 0:00:00]} 18. Rfe1 {[%emt 0:05:48]} g5 {[%emt 0:00:00]} 19. h3 {[%emt 0:11:18]} O-O {[%emt 0:00:00]} 20. e4 {[%emt 0:02:25]} dxe4 {[%emt 0:00:00]} 21. fxe4 {[%emt 0:00:37]} Nc4 {[%emt 0:00:00]} 22. e5 {[%emt 0:05:31]} Nd7 {[%emt 0:00:00]} 23. d5 {[%emt 0:04:55]} cxd5 {[%emt 0:00:00]} 24. Bxd5 {[%emt 0:00:17]} Qa6 {[%emt 0:00:00]} 25. e6 {[%emt 0:00:48]} Nde5 {[%emt 0:00:00]} 26. exf7+ {[%emt 0:01:35]} Rxf7 {[%emt 0:00:00]} 27. b3 {[%emt 0:01:14]} Ba3 {[%emt 0:00:00]} 28. bxc4 {[%emt 0:00:37]} Nf3+ {[%emt 0:00:00]} 29. Qxf3 {[%emt 0:34:47]} Rcf8 {[%emt 0:00:00]} 30. Re8 {[%emt 0:00:00]} Rxe8 {[%emt 0:00:00]} 31. Qxf7+ {[%emt 0:00:00]} Kh7 {[%emt 0:00:00]} 32. Qh5+ {[%emt 0:00:00]} Qh6 {[%emt 0:00:00]} 33. Qxe8 {[%emt 0:00:00]} Bxc1 {[%emt 0:00:00]} 34. Bg8+ {[%emt 0:00:00]} Kh8 {[%emt 0:00:00]} 35. Bf7+ {[%emt 0:00:00]} 1-0